[Event "Chinese League Division-A 2024"]
[Site "Fuling Chongqing"]
[Date "2024.07.03"]
[Round "7.11"]
[White "Chen, Yuan"]
[Black "Xu, Yi"]
[Result "1/2-1/2"]
[ECO "E05"]
[WhiteElo "2294"]
[BlackElo "2496"]
[Annotator "TA"]
[PlyCount "62"]
[EventDate "2024.06.28"]
[EventType "team-tourn"]
[EventCountry "CHN"]
[SourceTitle "playchess.com"]
[Source "ChessBase"]
[SourceQuality "1"]
[TimeControl "40/5400+30:1800+30"]

{[%evp 25,62,-28,-17,-28,-44,-41,-41,-43,0,0,6,2,0,-4,-9,-3,0,0,0,0,0,0,0,0,0,0,0,0,0,0,0,0,0,0,0,0,0,0,0]} 1. Nf3 {[%emt 0:00:12]} d5 {[%emt 0:00:04]} 2. g3 {[%emt 0:00:27]} Nf6 {[%emt 0:01:50]} 3. Bg2 {[%emt 0:00:11]} e6 {[%emt 0:00:05]} 4. d4 {[%emt 0:00:26]} Be7 {[%emt 0:00:06]} 5. O-O {[%emt 0:00:16]} O-O {[%emt 0:00:04]} 6. c4 {[%emt 0:00:12]} dxc4 {[%emt 0:00:05]} 7. Qa4 {[%emt 0:05:21]} a6 {[%emt 0:00:06]} 8. Qxc4 {[%emt 0:00:09]} b5 {[%emt 0:00:05]} 9. Qc2 {[%emt 0:00:20]} Bb7 {[%emt 0:00:04]} 10. Bf4 {[%emt 0:01:08]} Nc6 {[%emt 0:04:32]} 11. Rd1 {[%emt 0:02:09]} Nb4 {[%emt 0:02:10]} 12. Qc1 {[%emt 0:00:22]} Rc8 {[%emt 0:03:09]} 13. Nc3 {[%emt 0:02:01]} Nbd5 {[%emt 0:03:20]} 14. Bg5 {[%emt 0:14:20]} c5 {[%emt 0:05:13]} 15. Nxd5 {[%emt 0:00:00]} Bxd5 {[%emt 0:01:24]} 16. dxc5 {[%emt 0:09:44] Black is slightly better.} Bxc5 {[%emt 0:08:59]} 17. Qf4 $1 {[%emt 0:01:25][%cal Oe2e4] And now e4! would win. The position is equal.} h6 {[%emt 0:02:54]} 18. Bxf6 {[%emt 0:02:04]} Qxf6 {[%emt 0:00:11]} 19. Ne5 {[%emt 0:01:34] Hoping for Qxf6.} Qxf4 {[%emt 0:03:23]} 20. gxf4 {[%emt 0:00:05]} Bxg2 {[%emt 0:00:20]} 21. Kxg2 {[%emt 0:00:05]} Be7 {[%emt 0:11:04]} 22. Rac1 {[%emt 0:03:36] Repels Rc2} Bf6 {[%emt 0:01:15]} 23. Nd7 {[%emt 0:01:48]} Rxc1 {[%emt 0:00:56]} ({Reject} 23... Bxb2 24. Rb1 Rc2 25. Nxf8 Kxf8 26. Rd6 Rxe2 27. Rxa6 $16) 24. Nxf6+ {[%emt 0:00:23]} gxf6 {[%emt 0:00:04]} 25. Rxc1 $11 {[%emt 0:00:03][%mdl 4096] Endgame. KR-KR} Rd8 {[%emt 0:00:15]} 26. Rc2 {[%emt 0:00:44] Against Rd2} f5 {[%emt 0:00:22]} 27. e3 {[%emt 0:00:16]} Kg7 {[%emt 0:00:22]} 28. Rc6 {[%emt 0:00:48]} Rd2 {[%emt 0:00:11]} 29. Rxa6 {[%emt 0:00:05]} Rxb2 {[%emt 0:00:04]} 30. a4 {[%emt 0:00:14]} bxa4 {[%emt 0:00:05]} 31. Rxa4 {[%emt 0:00:05]} Rc2 {[%emt 0:00:09] Weighted Error Value: White=0.01 (flawless) /Black=0.04 (flawless) .  Inaccurate:     	---       	Black=1      OK:         	White=9     	Black=8      Best:        	White=1     	---        Strong:       	White=1     	---} 1/2-1/2

[Event "Chinese League Division-A 2024"]
[Site "Fuling Chongqing"]
[Date "2024.07.03"]
[Round "7.12"]
[White "Lou, Yiping"]
[Black "Lu, Shanglei"]
[Result "1/2-1/2"]
[ECO "D20"]
[WhiteElo "2442"]
[BlackElo "2606"]
[Annotator "TA"]
[PlyCount "48"]
[EventDate "2024.06.28"]
[EventType "team-tourn"]
[EventCountry "CHN"]
[SourceTitle "playchess.com"]
[Source "ChessBase"]
[SourceQuality "1"]
[TimeControl "40/5400+30:1800+30"]

{[%evp 9,48,55,57,56,74,39,54,58,50,48,33,32,39,28,47,45,47,22,30,8,27,4,3,22,19,18,17,17,12,6,8,12,12,0,0,0,8,0,0,0,15]} 1. d4 {[%emt 0:00:11]} d5 {[%emt 0:00:40]} 2. c4 {[%emt 0:00:57]} dxc4 {[%emt 0:01:02]} 3. e4 {[%emt 0:02:37]} b5 {[%emt 0:01:04]} 4. a4 {[%emt 0:00:07]} c6 {[%emt 0:00:07][%cal Bc7c6,Bc6b5][%mdl 32]} 5. axb5 {[%emt 0:00:47]} cxb5 {[%emt 0:00:06]} 6. Nc3 {[%emt 0:00:07]} Qb6 {[%emt 0:04:13]} 7. b3 {[%emt 0:04:22] White is more active.} e6 $1 {[%emt 0:01:58]} 8. bxc4 {[%emt 0:01:13] [#] c5 is the strong threat. White is slightly better.} Bb4 {[%emt 0:01:43]} 9. Bd2 {[%emt 0:01:57]} bxc4 {[%emt 0:00:16]} 10. Bxc4 {[%emt 0:03:02]} Ne7 {[%emt 0:05:42]} 11. Nf3 {[%emt 0:03:07]} O-O {[%emt 0:01:37]} 12. O-O {[%emt 0:00:08]} a5 $1 {[%emt 0:01:59]} 13. Na4 {[%emt 0:00:24]} Qd6 {[%emt 0:02:00]} 14. g3 {[%emt 0:05:28]} Ba6 {[%emt 0:02:13]} 15. Bxb4 {[%emt 0:03:34]} axb4 {[%emt 0:00:29] The position is equal.} 16. Nc5 {[%emt 0:00:24] Hoping for Re1.} Bxc4 {[%emt 0:00:31]} 17. Rxa8 {[%emt 0:00:08]} Bxf1 {[%emt 0:00:14]} 18. Qxf1 {[%emt 0:01:14]} Nbc6 {[%emt 0:00:42][%csl LRa8,LRd4]} 19. Rxf8+ {[%emt 0:02:15]} Kxf8 {[%emt 0:00:03]} 20. Qa6 {[%emt 0:00:05]} Qc7 {[%emt 0:00:38]} 21. Qa8+ {[%emt 0:02:05]} Qc8 {[%emt 0:00:05]} 22. Qa4 {[%emt 0:00:20]} Qc7 {[%emt 0:00:27]} 23. Qa8+ {[%emt 0:01:21]} Qc8 {[%emt 0:00:05]} 24. Qa4 {[%emt 0:00:05]} Qc7 {[%emt 0:00:04] Weighted Error Value: White=0.07 (flawless) /Black=0.01 (flawless) .  Inaccurate:     	White=1     	---        OK:         	White=6     	Black=10     Best:        	White=1     	Black=2      Strong:       	---       	Black=2} 1/2-1/2

[Event "Chinese League Division-A 2024"]
[Site "Fuling Chongqing"]
[Date "2024.07.03"]
[Round "7.13"]
[White "Xu, Minghui"]
[Black "Meng, Yihan"]
[Result "1/2-1/2"]
[ECO "D03"]
[WhiteElo "2388"]
[BlackElo "2268"]
[Annotator "TA"]
[PlyCount "60"]
[EventDate "2024.06.28"]
[EventType "team-tourn"]
[EventCountry "CHN"]
[SourceTitle "playchess.com"]
[Source "ChessBase"]
[SourceQuality "1"]
[TimeControl "40/5400+30:1800+30"]

{[%evp 14,60,11,16,50,12,11,-2,-17,-6,0,0,-4,0,-5,-7,0,-2,-6,-12,-7,-6,-5,-11,-11,-17,-10,-12,-12,-22,-22,-23,-29,-29,-31,-58,-13,-15,-12,-9,0,0,0,-8,0,0,0,0,0]} 1. d4 {[%emt 0:00:15]} d5 {[%emt 0:00:05]} 2. Nf3 {[%emt 0:00:08]} Nf6 {[%emt 0:00:05]} 3. c3 {[%emt 0:00:09]} e6 {[%emt 0:01:59]} 4. Bg5 {[%emt 0:05:48]} Be7 {[%emt 0:07:54]} 5. Nbd2 {[%emt 0:00:32]} Nbd7 {[%emt 0:00:44]} 6. e3 {[%emt 0:08:15]} c5 {[%emt 0:07:04]} 7. Bd3 {[%emt 0:01:21]} Qc7 {[%emt 0:06:38]} 8. O-O {[%emt 0:09:05]} h6 {[%emt 0:04:38]} 9. Bh4 {[%emt 0:08:09]} b6 {[%emt 0:08:44]} 10. Ne5 {[%emt 0:24:51]} Nxe5 {[%emt 0:06:55]} 11. dxe5 {[%emt 0:00:02]} Nd7 {[%emt 0:00:06]} 12. Bxe7 {[%emt 0:10:09] [#] Bd6 would now be deadly.} Nxe5 $1 {[%emt 0:05:37]} 13. Bxc5 $1 {[%emt 0:00:09]} bxc5 {[%emt 0:01:20]} 14. Bb5+ {[%emt 0:00:05]} Bd7 {[%emt 0:00:23]} 15. Bxd7+ {[%emt 0:00:55]} Nxd7 {[%emt 0:03:03]} 16. e4 {[%emt 0:01:09]} O-O {[%emt 0:00:14]} 17. exd5 {[%emt 0:00:40]} exd5 {[%emt 0:00:05]} 18. Re1 {[%emt 0:04:17]} Nf6 {[%emt 0:04:26]} 19. Nf1 {[%emt 0:00:40][%cal Bd2f1,Bf1e3,Be3f5,Bf5d4][%mdl 32]} Qb6 {[%emt 0:06:49]} 20. Qc2 {[%emt 0:03:56]} Rfe8 {[%emt 0:05:07]} 21. Rxe8+ {[%emt 0:02:19]} Rxe8 {[%emt 0:00:30]} 22. Ne3 {[%emt 0:02:48]} d4 {[%emt 0:06:00]} 23. cxd4 {[%emt 0:00:05]} cxd4 {[%emt 0:00:02]} 24. Nf5 {[%emt 0:01:14]} d3 {[%emt 0:11:18]} 25. Qxd3 {[%emt 0:00:37] The position is equal.} Qxb2 {[%emt 0:00:16]} 26. Qd4 {[%emt 0:09:48]} Qxd4 {[%emt 0:00:12]} 27. Nxd4 {[%emt 0:00:54]} Rc8 {[%emt 0:00:53]} 28. f3 {[%emt 0:00:01]} Rc4 {[%emt 0:00:16]} 29. Rd1 {[%emt 0:00:31]} g6 {[%emt 0:01:28]} 30. Rd2 {[%emt 0:01:05]} a6 {[%emt 0:01:22] Weighted Error Value: White=0.04 (flawless) /Black=0.07 (flawless) .  Inaccurate:     	White=1     	Black=1      OK:         	White=10    	Black=9      Strong:       	White=1     	Black=1} 1/2-1/2

[Event "Chinese League Division-A 2024"]
[Site "Fuling Chongqing"]
[Date "2024.07.03"]
[Round "7.14"]
[White "Ju, Wenjun"]
[Black "Ding, Yixin"]
[Result "1-0"]
[ECO "B22"]
[WhiteElo "2558"]
[BlackElo "2397"]
[Annotator "TA"]
[PlyCount "45"]
[EventDate "2024.06.28"]
[EventType "team-tourn"]
[EventCountry "CHN"]
[SourceTitle "playchess.com"]
[Source "ChessBase"]
[SourceQuality "1"]
[TimeControl "40/5400+30:1800+30"]

{[%evp 18,45,13,13,13,15,60,58,59,0,8,23,27,45,27,23,23,30,84,82,106,114,207,200,207,185,781,777,883,879]} 1. e4 {[%emt 0:00:02]} c5 {[%emt 0:00:20]} 2. Nf3 {[%emt 0:00:05]} e6 {[%emt 0:00:24]} 3. c3 {[%emt 0:02:11][%cal Bc2c3,Bc3d4,Bd4e5][%mdl 32]} Nf6 {[%emt 0:04:49]} 4. e5 {[%emt 0:00:03]} Nd5 {[%emt 0:00:04]} 5. d4 {[%emt 0:00:23]} cxd4 {[%emt 0:00:39]} 6. cxd4 {[%emt 0:00:04]} d6 {[%emt 0:01:24]} 7. Bc4 {[%emt 0:00:21]} Be7 {[%emt 0:00:55]} 8. O-O {[%emt 0:00:06]} O-O {[%emt 0:00:31]} 9. Qe2 {[%emt 0:02:48]} Nc6 {[%emt 0:01:56]} 10. Re1 {[%emt 0:14:59]} dxe5 {[%emt 0:13:54]} 11. dxe5 {[%emt 0:00:05]} Na5 {[%emt 0:03:38]} 12. Bd3 {[%emt 0:06:47]} Bd7 {[%emt 0:01:49] White is slightly better.} 13. Nc3 {[%emt 0:06:53]} (13. Qe4 $14 g6 14. Bh6) 13... Nxc3 $11 {[%emt 0:10:54]} 14. bxc3 {[%emt 0:00:58][%cal Oc1h6]} Rc8 {[%emt 0:00:04]} 15. Qe4 {[%emt 0:02:37][%csl Gd3][%cal Re4h7] [#]} g6 {[%emt 0:00:11][%cal Od7c6]} 16. Bh6 $40 {[%emt 0:00:05][%mdl 128] Black needs to defend precisely.} Bc6 {[%emt 0:18:23]} 17. Qe3 {[%emt 0:01:54]} Re8 {[%emt 0:00:02] [#]} (17... Bxf3 $1 $11 18. Bxf8 (18. gxf3 Re8 $11) 18... Bxf8 19. Qxf3 (19. gxf3 Rxc3 20. Red1 Nc6 $11) 19... Rxc3) 18. Ng5 $1 $16 {[%emt 0:14:34] White is more active.} (18. Qxa7 $2 {too greedy.} Bxf3 19. Qd4 Qxd4 20. cxd4 Bd5 $19) 18... Qd5 {[%emt 0:16:21]} 19. Bf1 {[%emt 0:01:46]} Qc5 {[%emt 0:07:19]} (19... f5 $16 {is a better defense.}) 20. Qf4 $18 {[%emt 0:01:52]} Bxg5 {[%emt 0:01:32]} 21. Bxg5 {[%emt 0:01:03] aiming for Bf6.} ({Much less strong is} 21. Qxg5 $6 Qe7 $16) 21... Bb5 $2 {[%emt 0:04:56]} (21... Bd5 22. Rad1 Qf8) 22. Bxb5 {[%emt 0:01:46]} Qxb5 {[%emt 0:00:02]} 23. Qf6 {[%emt 0:00:15] Weighted Error Value: White=0.10 (very precise) /Black=0.28 (precise) .  Mistake:       	White=1     	Black=3      Inaccurate:     	---       	Black=1      OK:         	White=4     	Black=3      Best:        	White=3     	Black=2      Strong:       	White=1     	---} 1-0

[Event "Chinese League Division-A 2024"]
[Site "Fuling Chongqing"]
[Date "2024.07.03"]
[Round "7.15"]
[White "Zhu, Jiner"]
[Black "Ni, Shiqun"]
[Result "1/2-1/2"]
[ECO "C42"]
[WhiteElo "2476"]
[BlackElo "2352"]
[Annotator "TA"]
[PlyCount "148"]
[EventDate "2024.06.28"]
[EventType "team-tourn"]
[EventCountry "CHN"]
[SourceTitle "playchess.com"]
[Source "ChessBase"]
[SourceQuality "1"]
[TimeControl "40/5400+30:1800+30"]

{[%evp 67,148,58,64,36,43,23,66,24,25,25,24,0,172,175,189,190,193,192,243,189,233,178,181,172,166,0,0,0,163,118,149,128,171,171,170,169,356,340,341,347,514,512,469,294,337,347,355,335,424,325,707,704,675,651,1420,367,391,389,367,322,655,655,597,463,463,427,1856,183,183,8,8,8,8,8,8,0,0,0,0,0,0,0,0]} 1. e4 {[%emt 0:00:04]} e5 {[%emt 0:00:02]} 2. Nf3 {[%emt 0:00:12]} Nf6 {[%emt 0:00:03]} 3. Nxe5 {[%emt 0:00:36]} d6 {[%emt 0:00:04]} 4. Nf3 {[%emt 0:00:09]} Nxe4 {[%emt 0:00:05]} 5. c4 {[%emt 0:00:07]} Nc6 {[%emt 0:01:45]} 6. d3 {[%emt 0:00:25]} Nf6 {[%emt 0:00:04]} 7. d4 {[%emt 0:00:05]} Bg4 {[%emt 0:00:28]} 8. Be2 {[%emt 0:01:25]} d5 {[%emt 0:18:39]} 9. c5 {[%emt 0:00:50]} Be7 {[%emt 0:02:00]} 10. h3 {[%emt 0:02:00]} Bh5 {[%emt 0:09:41]} 11. Nc3 {[%emt 0:10:19]} O-O {[%emt 0:00:42]} 12. Be3 {[%emt 0:01:52]} Ne4 {[%emt 0:07:57]} 13. Qb3 {[%emt 0:19:09]} Nxc3 {[%emt 0:00:11]} 14. Qxc3 {[%emt 0:00:03]} Bf6 {[%emt 0:08:12]} 15. b4 {[%emt 0:06:46]} Bxf3 {[%emt 0:07:21]} 16. Bxf3 {[%emt 0:00:17]} Ne7 {[%emt 0:00:30]} 17. Qd3 {[%emt 0:03:34]} b6 {[%emt 0:06:39]} 18. O-O {[%emt 0:01:47]} a5 {[%emt 0:01:10]} 19. a3 {[%emt 0:01:35]} g6 {[%emt 0:05:36]} 20. g4 {[%emt 0:04:40]} Qd7 {[%emt 0:08:37]} 21. Rfc1 {[%emt 0:17:47]} axb4 {[%emt 0:01:29]} 22. axb4 {[%emt 0:00:06]} Rxa1 {[%emt 0:01:22]} 23. Rxa1 {[%emt 0:00:05]} bxc5 {[%emt 0:00:05]} 24. bxc5 {[%emt 0:00:04]} Rb8 {[%emt 0:00:46]} 25. Ra6 {[%emt 0:02:55]} Bg7 {[%emt 0:01:40]} 26. Qd1 {[%emt 0:03:16]} h6 {[%emt 0:03:37]} 27. Kg2 {[%emt 0:03:48]} Rb4 {[%emt 0:06:44]} 28. Qd2 {[%emt 0:01:25]} Qb5 {[%emt 0:00:33]} 29. Be2 {[%emt 0:01:27]} Qb8 {[%emt 0:00:33]} 30. Qa2 {[%emt 0:01:46]} Kh7 {[%emt 0:02:00]} 31. Ra8 {[%emt 0:01:44]} Qb7 {[%emt 0:05:20]} 32. Ra7 {[%emt 0:00:27]} Qc6 {[%emt 0:00:25]} 33. Qa5 {[%emt 0:01:58]} Rb7 {[%emt 0:00:13]} 34. Ra6 {[%emt 0:00:16]} Qd7 {[%emt 0:00:46]} 35. Bf3 {[%emt 0:00:32]} c6 {[%emt 0:01:29]} 36. Ra8 {[%emt 0:00:20]} Nc8 {[%emt 0:00:31]} 37. Qa6 {[%emt 0:01:23]} Na7 {[%emt 0:00:29]} 38. Be2 {[%emt 0:01:13]} Bf6 {[%emt 0:01:01]} 39. Qa2 {[%emt 0:05:46]} Nc8 $2 {[%emt 0:00:26] [#]} (39... Nb5 $11) 40. Qd2 $1 $18 {[%emt 0:00:00]} Ra7 {[%emt 0:00:00]} 41. Rxa7 {[%emt 0:01:44]} Qxa7 {[%emt 0:04:20]} 42. Bxh6 {[%emt 0:00:10]} Qa4 {[%emt 0:00:04]} (42... Qe7 {is a better defense.}) 43. Be3 {[%emt 0:00:07]} Qa3 {[%emt 0:14:18]} 44. Qd3 {[%emt 0:14:53]} Qb2 {[%emt 0:00:20]} 45. Bf3 {[%emt 0:04:26]} Ne7 {[%emt 0:04:08]} 46. Kg3 {[%emt 0:01:39]} Qb8+ $1 {[%emt 0:00:04]} 47. Kg2 {[%emt 0:00:36]} Qb2 $1 {[%emt 0:00:04]} 48. Qe2 {[%emt 0:02:34]} Qb4 {[%emt 0:01:16]} 49. Qd1 {[%emt 0:01:11]} Ng8 {[%emt 0:05:45]} 50. h4 {[%emt 0:00:59]} Ne7 {[%emt 0:00:43]} 51. h5 {[%emt 0:00:55]} g5 $2 {[%emt 0:01:39]} (51... Kg8 52. g5 Bh8 53. hxg6 Nxg6) 52. Qd3+ $18 {[%emt 0:00:20]} Kg7 {[%emt 0:00:26]} 53. Bd1 {[%emt 0:00:23]} Qb2 {[%emt 0:01:18]} (53... Kf8 $142 54. Qb3 Qxb3 55. Bxb3 Bg7) 54. Bc2 $18 {[%emt 0:00:28]} Kf8 {[%emt 0:01:36]} 55. Qd1 {[%emt 0:03:13]} Kg7 {[%emt 0:00:34]} 56. Qd2 {[%emt 0:02:08]} Kf8 {[%emt 0:00:47]} 57. Qd3 {[%emt 0:00:18]} (57. Bxg5 Bxg5 58. Qxg5 Qxc2 59. Qh6+ Ke8 $11) 57... Qb4 {[%emt 0:01:23]} 58. Qa6 {[%emt 0:02:36]} Kg7 $2 {[%emt 0:00:58]} (58... Qb8 59. Kh3 Qe8) 59. Qa8 $18 {[%emt 0:00:42]} Ng8 {[%emt 0:00:31]} 60. Qxc6 {[%emt 0:00:32]} Bxd4 {[%emt 0:00:02]} 61. Qa4 $2 {[%emt 0:03:10]} (61. Bxg5 {White wants to mate with h6+.} Kh8 62. Qc8 (62. Qxd5 Qxc5 63. Qe4 f5 $18)) 61... Bxc5 $18 {[%emt 0:00:36]} 62. Qxb4 {[%emt 0:00:04]} (62. Bxg5 Qxa4 63. Bxa4 f5 64. gxf5 Be7 $16) 62... Bxb4 {[%emt 0:00:06]} 63. Bxg5 {[%emt 0:00:03]} Be7 $2 {[%emt 0:01:16]} (63... Bc5 64. Bc1 Kh8 65. Bb2+ d4) 64. Be3 $18 {[%emt 0:01:54]} Nf6 {[%emt 0:00:20]} 65. Bd4 {[%emt 0:00:46]} Kh6 {[%emt 0:00:10]} 66. Kh3 {[%emt 0:00:12]} ({Not} 66. Be3+ Kg7 67. h6+ Kg8 $18) 66... Ne4 {[%emt 0:00:38]} (66... Nh7 $142 67. Be3+ Ng5+ 68. Kg3 Bd6+ 69. Kh4 f6) 67. f4 $2 {[%emt 0:01:23]} (67. Bxe4 dxe4 68. Be3+ Kh7 69. g5) 67... f5 $18 {[%emt 0:00:24]} 68. Bxe4 $2 {[%emt 0:01:44]} (68. gxf5 $18 {Hoping for Bxe4.} Nf6 69. Be5) 68... dxe4 $11 {[%emt 0:00:10]} 69. gxf5 {[%emt 0:00:24]} Kxh5 {[%emt 0:00:04]} 70. Kg3 {[%emt 0:01:17]} (70. f6 {keeps more tension.} Bb4 71. f7 Kg6 72. Kg4) 70... Bh4+ {[%emt 0:00:07]} 71. Kh3 {[%emt 0:00:03]} Be1 {[%emt 0:00:34]} 72. f6 {[%emt 0:00:38]} Kg6 {[%emt 0:00:06]} 73. Kg4 {[%emt 0:00:06]} Bd2 {[%emt 0:00:13]} 74. Be5 {[%emt 0:00:26]} Bc1 {[%emt 0:00:20]} 1/2-1/2

[Event "Chinese League Division-A 2024"]
[Site "Fuling Chongqing"]
[Date "2024.07.03"]
[Round "7.16"]
[White "Bu, Xiangzhi"]
[Black "Nie, Xinyang"]
[Result "1-0"]
[ECO "E16"]
[WhiteElo "2689"]
[BlackElo "2395"]
[Annotator "TA"]
[PlyCount "59"]
[EventDate "2024.06.28"]
[EventType "team-tourn"]
[EventCountry "CHN"]
[SourceTitle "playchess.com"]
[Source "ChessBase"]
[SourceQuality "1"]
[TimeControl "40/5400+30:1800+30"]

{[%evp 18,59,27,22,37,24,35,25,34,16,26,0,0,15,9,6,8,0,33,16,56,46,42,21,12,18,13,-79,-81,-68,14,22,875,715,716,680,29989,29990,29990,29991,29991,29978,6291,5297]} 1. d4 {[%emt 0:00:05]} Nf6 {[%emt 0:00:33]} 2. Nf3 {[%emt 0:01:17]} e6 {[%emt 0:00:35]} 3. g3 {[%emt 0:01:53]} b6 {[%emt 0:01:52]} 4. Bg2 {[%emt 0:00:37]} Bb7 {[%emt 0:00:05]} 5. c4 {[%emt 0:04:43]} Bb4+ {[%emt 0:00:54]} 6. Bd2 {[%emt 0:03:15]} c5 {[%emt 0:01:03]} 7. O-O {[%emt 0:00:30]} O-O {[%emt 0:01:34]} 8. Bxb4 {[%emt 0:05:15]} cxb4 {[%emt 0:00:05]} 9. Qd3 {[%emt 0:00:04]} d6 {[%emt 0:03:07]} 10. Nbd2 {[%emt 0:01:24]} Qe7 {[%emt 0:01:19]} 11. e4 {[%emt 0:05:49]} e5 {[%emt 0:02:22]} 12. Ne1 {[%emt 0:01:50]} Nc6 {[%emt 0:04:49] White has an edge.} 13. Nc2 {[%emt 0:02:06] Threatening d5.} exd4 {[%emt 0:02:12]} 14. Rfe1 {[%emt 0:09:38][%cal Od2b3]} Nd7 {[%emt 0:01:45] aiming for ...Nc5.} 15. Nxd4 {[%emt 0:01:31]} Nc5 {[%emt 0:01:38]} 16. Nxc6 {[%emt 0:04:05]} Bxc6 {[%emt 0:00:05]} 17. Qc2 {[%emt 0:00:26]} Qb7 {[%emt 0:04:35]} 18. f3 {[%emt 0:02:00]} h6 {[%emt 0:02:12]} 19. Rad1 {[%emt 0:10:45]} Rad8 {[%emt 0:01:16]} 20. Nf1 {[%emt 0:09:17]} f5 $1 {[%emt 0:05:01]} 21. exf5 {[%emt 0:00:56][%cal Be4f5,Bf5f6,Bf6e7][%mdl 32] White wants to play Ne3.} Bxf3 {[%emt 0:00:05]} 22. Ne3 {[%emt 0:01:48]} (22. Bxf3 $11 Qxf3 23. Ne3) 22... Bxd1 $17 {[%emt 0:13:47]} 23. Rxd1 {[%emt 0:06:41]} Qa6 {[%emt 0:19:58]} ({Black should try} 23... Qe7 $15 24. Nd5 Qg5) 24. Nd5 $11 {[%emt 0:02:05] [#] Ne7+ is the strong threat.} Qxa2 $2 {[%emt 0:11:08][%mdl 8192] Black cannot hold the game after this.} (24... Kh8 $11) 25. f6 {[%emt 0:02:48]} Rf7 {[%emt 0:10:11]} 26. Ne7+ {[%emt 0:03:57]} (26. Nxb4 Qb3 27. Bd5 Qxc2 (27... Qxb4 28. Qg6) 28. Nxc2 gxf6 $18) 26... Rxe7 {[%emt 0:00:23]} 27. fxe7 {[%emt 0:00:16]} Re8 {[%emt 0:00:06] Black is weak on the light squares} 28. Bd5+ {[%emt 0:00:11]} Kh8 {[%emt 0:00:04]} 29. Rf1 {[%emt 0:00:14]} Nd7 {[%emt 0:00:05]} 30. Bc6 {[%emt 0:01:16] Weighted Error Value: White=0.16 (very precise) /Black=0.52.  Loses game:     	---       	Black=1      Mistake:       	White=1     	Black=1      Inaccurate:     	---       	Black=2      OK:         	White=7     	Black=5      Best:        	---       	Black=2      Strong:       	---       	Black=1} 1-0

[Event "Chinese League Division-A 2024"]
[Site "Fuling Chongqing"]
[Date "2024.07.03"]
[Round "7.17"]
[White "Peng, Xiongjian"]
[Black "Liu, Yan"]
[Result "1/2-1/2"]
[ECO "C42"]
[WhiteElo "2521"]
[BlackElo "2573"]
[Annotator "TA"]
[PlyCount "75"]
[EventDate "2024.06.28"]
[EventType "team-tourn"]
[EventCountry "CHN"]
[SourceTitle "playchess.com"]
[Source "ChessBase"]
[SourceQuality "1"]
[TimeControl "40/5400+30:1800+30"]

{[%evp 21,75,15,22,14,22,14,4,18,2,23,15,12,37,39,27,16,35,19,0,0,30,28,22,21,27,32,29,35,32,22,28,29,29,29,44,44,22,17,23,12,13,12,10,10,10,9,9,9,9,9,12,0,9,0,16,0]} 1. e4 {[%emt 0:00:45]} e5 {[%emt 0:01:14]} 2. Nf3 {[%emt 0:01:18]} Nf6 {[%emt 0:00:45]} 3. Nxe5 {[%emt 0:03:09]} d6 {[%emt 0:00:20]} 4. Nf3 {[%emt 0:00:17]} Nxe4 {[%emt 0:00:15]} 5. d4 {[%emt 0:02:03]} d5 {[%emt 0:00:47]} 6. Bd3 {[%emt 0:03:25]} Bd6 {[%emt 0:04:03]} 7. O-O {[%emt 0:02:05]} O-O {[%emt 0:00:53]} 8. c4 {[%emt 0:05:56]} c6 {[%emt 0:02:25]} 9. Nc3 {[%emt 0:02:27]} Nxc3 {[%emt 0:00:53]} 10. bxc3 {[%emt 0:00:07]} dxc4 {[%emt 0:00:12]} 11. Bxc4 {[%emt 0:00:06]} Bf5 {[%emt 0:02:35]} 12. Bg5 {[%emt 0:06:52]} Qa5 {[%emt 0:00:36]} 13. d5 {[%emt 0:03:30] [#] aiming for dxc6.} (13. Nh4 {looks sharper.} Be6 14. Bxe6 Qxg5 15. Nf3) 13... Be4 {[%emt 0:10:36]} 14. dxc6 $1 {[%emt 0:02:47]} Bxf3 {[%emt 0:03:09]} (14... Qxc3 $2 15. Qxd6 Qxc4 16. c7 $18) 15. Qxf3 {[%emt 0:00:33]} Nxc6 {[%emt 0:00:09][%cal Oc6e5] ...Ne5! would now be deadly.} (15... Qxg5 $2 {perishes.} 16. cxb7 Qe5 17. g3 $18 (17. bxa8=R $2 Qxh2#) (17. bxa8=R $2 Qxh2#)) 16. Bd5 {[%emt 0:03:47]} h6 {[%emt 0:01:56]} 17. Be3 {[%emt 0:00:11] This pair of bishops is nice.} Rad8 {[%emt 0:01:55][%cal Od6h2]} 18. c4 {[%emt 0:01:50][%cal Oa1b1]} Bc5 {[%emt 0:01:12]} 19. Bf4 {[%emt 0:00:43]} Bd6 {[%emt 0:00:17]} 20. Be3 {[%emt 0:00:08][%cal Oa1b1]} Bc5 {[%emt 0:00:13]} 21. Bxc6 {[%emt 0:01:30]} bxc6 {[%emt 0:00:54]} 22. Qf5 {[%emt 0:00:15]} Bb4 {[%emt 0:00:38][%cal Bc5b4,Bb4a5,Ba5c3][%mdl 32]} 23. Qxa5 {[%emt 0:00:10]} Bxa5 {[%emt 0:00:05]} 24. Bxa7 {[%emt 0:00:08]} Bc3 {[%emt 0:01:14]} 25. Rad1 {[%emt 0:01:37]} Ra8 {[%emt 0:01:25]} 26. Rd7 {[%emt 0:01:27]} Rfe8 {[%emt 0:00:50]} 27. g3 {[%emt 0:01:10]} Re4 {[%emt 0:01:13][%cal Oc3f6]} 28. Rc1 {[%emt 0:00:18]} Rxc4 {[%emt 0:01:19]} 29. Rc2 {[%emt 0:00:24]} Ra4 {[%emt 0:00:19]} 30. Be3 {[%emt 0:00:08]} Ba1 {[%emt 0:00:23] The position is equal.} 31. Rxc6 {[%emt 0:01:12]} Rxa2 {[%emt 0:00:08]} 32. Rcc7 {[%emt 0:00:08]} Rf8 {[%emt 0:00:27]} 33. Bc5 {[%emt 0:00:06]} Be5 $1 {[%emt 0:00:24]} 34. Rb7 {[%emt 0:00:37]} Rc8 {[%emt 0:00:11]} 35. Be3 {[%emt 0:00:07]} Rf8 {[%emt 0:00:11]} 36. Bc5 {[%emt 0:01:59]} Rc8 {[%emt 0:00:06]} 37. Be3 {[%emt 0:00:03]} Rf8 {[%emt 0:00:07]} 38. Bc5 {[%emt 0:00:46] Weighted Error Value: White=0.02 (flawless) /Black=0.03 (flawless) .  OK:         	White=13    	Black=17     Strong:       	White=1     	Black=1} 1/2-1/2